bitfinex/quotes_ETHUSD_20250106
["timestamp","ask_amount","ask_price","bid_price","bid_amount"]
[1736172441782,0.0500424,3644.5,3643.8,0.2221]
[1736172441983,0.0500424,3644.5,3643.9,0.55]
[1736172442185,2.74333,3645.2,3644.1,0.2221]
[1736172442481,0.53183063,3645.1,3644.1,0.2221]
[1736172442922,0.05027763,3645.1,3644.2,0.58493892]
[1736172443123,0.05027763,3645.1,3644.6,0.2221]
[1736172443300,2.86824,3645.4,3644.6,0.2221]
[1736172443505,0.05048333,3645.0,3644.6,0.2221]
[1736172443729,2.86824,3645.4,3644.6,0.2221]
[1736172443919,0.05034757,3644.9,3644.6,0.2221]
[1736172444239,0.05031033,3644.8,3644.6,0.2221]
[1736172444403,2.74363,3644.8,3644.2,0.2221]
[1736172444734,0.05027308,3644.7,3643.8,3.0075]
[1736172445092,0.05027308,3644.7,3643.8,2.75186]
[1736172445505,2.7438,3644.6,3643.7,3.2221]
[1736172445805,0.05042249,3644.5,3643.7,3.2221]
[1736172446001,0.05042249,3644.5,3643.7,0.2221]
[1736172446252,2.63159872,3644.2,3643.2,0.1211567]
[1736172446455,0.17535482,3644.1,3643.4,0.2221]
[1736172446600,0.28069535,3644.0,3643.4,0.2221]
[1736172446795,0.0502356,3643.9,3643.4,0.2221]
[1736172447460,0.125,3644.1,3643.4,0.2221]
[1736172447747,0.04974582,3644.0,3643.4,0.2221]
[1736172448098,0.125,3644.2,3643.4,0.2221]
[1736172448298,0.04969288,3643.9,3643.4,0.2221]
[1736172448530,2.74394,3644.4,3643.4,0.2221]
[1736172448736,0.7427254,3644.4,3643.5,0.5774448]
[1736172449061,0.05006859,3644.3,3643.5,0.55]
[1736172449196,0.125,3644.5,3643.5,0.55]
[1736172449395,0.04986352,3644.4,3643.5,0.55]
[1736172449597,2.74401,3644.3,3643.5,0.55]
[1736172449801,2.74417,3644.1,3643.4,0.2221]
[1736172450052,1.12727934,3644.0,3643.2,0.1211567]
[1736172450213,2.7444,3643.8,3643.2,0.1211567]
[1736172450417,0.04835594,3643.7,3643.2,0.1211567]
[1736172451270,3.82326885,3644.0,3643.2,0.1211567]
[1736172451545,0.04782527,3643.6,3643.2,0.1211567]
[1736172451716,1.07901885,3644.0,3643.2,0.1211567]
[1736172451717,2.74445,3643.8,3643.2,0.1211567]
[1736172451924,0.04781544,3643.5,3643.2,0.1211567]
[1736172452102,0.38234689,3643.7,3643.2,0.1211567]
[1736172452303,0.04762923,3643.4,3643.2,0.1211567]
[1736172452543,0.38234689,3643.7,3643.2,0.1211567]
[1736172452743,0.04759195,3643.3,3643.2,0.1211567]
[1736172453214,2.74447,3643.7,3643.2,0.1211567]
[1736172453415,0.32215078,3643.6,3643.2,0.1211567]
[1736172453915,2.74469,3643.4,3643.2,0.1211567]
[1736172454338,0.04756452,3643.3,3643.2,0.1211567]
[1736172455145,3.59212452,3643.3,3643.2,0.1211567]
[1736172455503,3.54456,3643.3,3643.2,0.1211567]
[1736172455733,4.2370871,3643.3,3643.2,0.1211567]
[1736172458748,0.6925271,3643.3,3643.2,0.1211567]
[1736172458927,0.04746653,3643.3,3643.2,0.1211567]
[1736172459324,0.53563775,3643.7,3643.2,0.1211567]
[1736172459561,2.74411,3644.2,3643.3,0.2221]
[1736172459869,2.74416,3644.1,3643.3,0.2221]
[1736172460150,2.7443,3644.0,3643.4,35.0]
[1736172460716,3.19151872,3644.2,3643.3,0.2221]
[1736172460717,2.78985299,3643.9,3643.3,0.2221]
[1736172460980,3.38799016,3643.9,3643.3,0.2221]
[1736172461115,2.7446,3643.6,3643.2,0.1211567]
[1736172461447,0.04549997,3643.5,3643.2,0.1211567]
[1736172461652,2.74476,3643.3,3643.2,0.1211567]
[1736172461820,3.06484175,3643.3,3643.2,0.1211567]
[1736172462017,0.32008175,3643.3,3643.2,0.1211567]
[1736172462412,0.04560575,3643.3,3643.2,0.1211567]
[1736172462752,3.6762,3643.8,3643.2,0.1211567]
[1736172462955,2.8694,3643.8,3643.2,0.1211567]
[1736172463254,0.04566851,3643.7,3643.2,0.1211567]
[1736172463724,2.79014851,3643.7,3643.2,0.1211567]
[1736172463923,0.04566851,3643.7,3643.3,0.2221]
[1736172464341,0.7528,3644.6,3643.3,0.2221]
[1736172464342,3.7528,3644.6,3643.3,0.2221]
[1736172464555,0.0439879,3643.6,3643.3,0.2221]
[1736172464763,2.74418,3644.1,3643.3,0.2221]
[1736172464962,0.04395072,3643.5,3643.4,0.5849454]
[1736172465167,0.125,3644.4,3643.4,0.5849454]
[1736172465366,0.125,3644.4,3643.5,0.2221]
[1736172465667,0.04435163,3644.3,3643.5,0.2221]
[1736172465867,0.04435163,3644.3,3644.0,0.2221]
[1736172466027,1.14239102,3644.8,3644.1,0.02743822]
[1736172466223,0.04364629,3644.7,3644.1,0.02743822]
[1736172466428,0.04364629,3644.7,3644.3,0.015]
[1736172466665,1.14239102,3644.8,3644.5,0.0075]
[1736172466845,0.04374213,3644.7,3644.5,0.03493524]
[1736172467037,1.14239102,3644.9,3644.5,0.03493524]
[1736172467242,0.04418866,3644.8,3644.6,35.0]
[1736172468172,2.74337,3645.2,3644.6,35.0]
[1736172468330,0.04420615,3644.7,3644.6,35.0]
[1736172468530,2.74337,3645.2,3644.6,35.0]
[1736172470261,2.74337,3645.2,3644.5,0.0075]
[1736172470445,0.04488871,3645.1,3644.5,0.03493444]
[1736172470646,0.04488871,3645.1,3644.5,35.03493444]
[1736172470848,2.74337,3645.2,3644.5,35.0075]
[1736172471041,2.74337,3645.2,3644.6,0.02743445]
[1736172471471,0.0446185,3645.1,3644.6,0.02743445]
[1736172471649,0.0446185,3645.1,3644.6,35.02743445]
[1736172471833,1.14239102,3645.7,3644.5,0.0075]
[1736172472038,2.74338,3645.2,3644.5,0.0075]
[1736172472375,0.04487513,3645.1,3644.6,35.0]
[1736172472734,2.74338,3645.2,3644.6,35.0]
[1736172473074,2.74343,3645.1,3644.6,35.0]
[1736172473271,0.67935983,3645.6,3644.6,35.0]
[1736172473272,1.82175085,3645.6,3644.6,35.0]
[1736172473504,2.74371,3644.7,3644.6,35.0]
[1736172473683,2.74381,3644.6,3643.7,0.2221]
[1736172473832,0.04448169,3644.5,3643.8,0.565]
[1736172474036,0.04448169,3644.5,3644.0,0.0075]
[1736172474336,2.74381,3644.6,3644.0,0.0075]
[1736172474566,2.74381,3644.6,3643.7,3.2221]
[1736172474738,2.74381,3644.6,3643.8,0.02743994]
[1736172475059,0.0444422,3644.5,3643.9,35.0075]
[1736172475274,2.74365,3644.8,3644.0,0.02743958]
[1736172475479,2.74379,3644.6,3644.0,0.02743958]
[1736172475639,0.04445633,3644.5,3644.0,0.02743958]
[1736172476031,0.04445633,3644.5,3644.1,35.0]
[1736172476352,2.74379,3644.6,3644.1,35.0]
[1736172476560,0.7732,3644.5,3644.1,35.0]
[1736172476742,2.74379,3644.6,3644.1,35.0]
[1736172478480,0.04448169,3644.5,3644.1,35.0]
[1736172478980,2.74365,3644.8,3644.1,35.0]
[1736172479177,0.7519,3644.9,3644.1,35.0]
[1736172479178,0.04486067,3644.4,3644.1,35.0]
[1736172479380,2.74378,3644.6,3644.1,35.0]
[1736172479544,2.74378,3644.6,3643.8,0.015]
[1736172479751,0.04449601,3644.5,3643.8,0.0424387]
[1736172480248,0.04449601,3644.5,3644.0,35.0]
[1736172483616,2.78837601,3644.5,3644.0,35.0]
[1736172484174,0.04449601,3644.5,3644.0,35.0]
[1736172484402,0.04449601,3644.5,3644.1,0.0274387]
[1736172484608,2.74373,3644.7,3644.1,0.0274387]
[1736172484811,0.04328316,3644.4,3644.1,0.0274387]
[1736172485017,2.74373,3644.7,3644.1,0.0274387]
[1736172485312,0.04340072,3644.6,3644.3,0.2221]
[1736172485501,0.04340072,3644.6,3644.4,0.03493574]
[1736172485676,1.14239102,3645.1,3644.4,0.03493574]
[1736172485873,0.04327825,3645.0,3644.4,0.0075]
[1736172486074,0.04327825,3645.0,3644.5,35.0]
[1736172486477,2.78676825,3645.0,3644.5,35.0]
[1736172486673,2.74361,3644.9,3644.5,35.0]
[1736172486873,0.04320375,3644.8,3644.5,35.0]
[1736172487109,0.83910375,3644.8,3644.5,35.0]
[1736172487324,2.74378,3644.6,3644.5,35.0]
[1736172487482,2.74399,3644.4,3643.9,0.2221]
[1736172487694,0.04352994,3644.3,3643.9,0.2221]
[1736172488009,2.74386,3644.5,3644.0,35.0]
[1736172488217,2.74373,3644.7,3644.0,35.0]
[1736172488378,0.04338412,3644.4,3644.0,35.0]
[1736172488590,2.74373,3644.7,3644.0,35.0]
[1736172488998,0.04345864,3644.6,3644.0,35.0]
[1736172489204,0.4017675,3644.6,3644.0,35.0]
[1736172489700,0.35830886,3644.6,3644.0,35.0]
[1736172489994,2.74372,3644.7,3644.0,35.0]
[1736172490499,0.04330964,3644.6,3644.1,0.02743825]
[1736172490705,3.30816666,3645.0,3644.1,0.02743825]
[1736172490911,3.30816666,3645.0,3644.2,0.2221]
[1736172491109,0.0434214,3644.9,3644.2,0.2221]
[1736172491513,0.0434214,3644.9,3644.3,2.7515]
[1736172491715,0.0434214,3644.9,3644.4,0.02743559]
[1736172492070,1.14239102,3645.1,3644.5,2.75133]
[1736172492197,0.04345595,3644.8,3644.6,0.24953447]
[1736172492393,1.14239102,3645.3,3644.6,0.24953447]
[1736172492804,0.04368102,3645.2,3644.6,0.24953447]
[1736172493008,0.04368102,3645.2,3644.7,35.0]
[1736172493404,1.14239102,3645.3,3644.7,35.0]
[1736172493599,0.8245,3645.4,3644.7,35.0]
[1736172493937,0.04391582,3645.3,3644.7,35.0]
[1736172494236,0.04391582,3645.3,3644.8,0.03493446]
[1736172494595,1.14239102,3645.7,3645.0,2.75097]
[1736172494797,1.14239102,3645.8,3645.2,0.0075]
[1736172495001,1.14239102,3645.8,3645.3,0.02742958]
[1736172495823,1.14239102,3645.8,3645.5,0.2221]
[1736172496246,5.03246643,3646.2,3645.5,0.2221]
[1736172496247,2.74258,3646.2,3645.5,0.2221]
[1736172496530,0.4806671,3646.1,3645.6,0.0274274]
[1736172496913,0.04396696,3646.0,3645.6,0.0274274]
[1736172497347,0.04396696,3646.0,3645.7,3.0]
[1736172497644,0.04396696,3646.0,3645.8,0.03492628]
[1736172497940,1.14239102,3646.6,3645.8,0.03492628]
[1736172498140,1.14239102,3646.6,3646.2,0.0075]
[1736172498346,0.04437095,3646.5,3646.2,0.03492224]
[1736172498504,0.04437095,3646.5,3646.4,0.2371]
[1736172498840,0.04437095,3646.5,3646.4,0.7871]
[1736172499338,1.14239102,3647.2,3646.5,0.0075]
[1736172499543,1.70254685,3647.2,3646.5,0.0075]
[1736172500542,0.04180853,3647.1,3646.4,0.2221]
[1736172500727,0.8161,3647.0,3645.8,0.2221]
[1736172501148,2.7422,3646.7,3645.8,0.2221]
[1736172501468,0.7543,3646.2,3645.4,0.2221]
[1736172501666,0.7543,3646.2,3645.0,0.2221]
[1736172501667,2.74286,3645.9,3645.0,0.2221]
[1736172501803,0.274286,3645.8,3645.0,0.2221]
[1736172502004,2.74321,3645.4,3644.9,1.13017857]
[1736172502444,2.78496945,3645.3,3644.9,1.13017857]
[1736172502648,2.78496945,3645.3,3644.5,0.0075]
[1736172503749,2.74337,3645.2,3644.5,0.0075]
[1736172504046,2.74337,3645.2,3644.1,0.2296]
[1736172504047,2.7436,3644.9,3644.1,0.2296]
[1736172504250,0.83979323,3645.1,3644.1,0.2221]
[1736172504425,0.04128784,3644.8,3644.1,0.2221]
[1736172504623,2.74357,3644.9,3644.1,0.2221]
[1736172504935,0.0409626,3644.8,3644.1,0.2221]
[1736172505654,3.14286586,3644.8,3644.1,0.2221]
[1736172506631,0.39922586,3644.8,3644.1,0.2221]
[1736172506854,0.0409626,3644.8,3644.1,0.2221]
[1736172507021,0.0409626,3644.8,3644.2,0.03493857]
[1736172507346,0.04095268,3644.7,3644.2,0.03493857]
[1736172507740,2.74349,3645.0,3644.2,0.0075]
[1736172507926,0.04088827,3644.6,3644.2,0.0075]
[1736172508130,2.74349,3645.0,3644.2,0.0075]
[1736172508445,0.3820097,3644.9,3644.2,0.03493729]
[1736172508655,0.42303688,3644.9,3644.2,0.0075]
[1736172508849,0.04102718,3644.9,3644.2,0.03493728]
[1736172509354,0.04054579,3644.8,3644.5,0.2221]
[1736172509749,1.89459102,3645.5,3644.6,0.02743433]
[1736172509955,2.74305,3645.6,3644.6,3.02743433]
[1736172510155,0.04078721,3645.4,3644.7,0.015]
[1736172510356,0.0408516,3645.5,3644.7,0.015]
[1736172510534,0.04074998,3645.3,3644.9,0.0075]
[1736172510737,0.04081437,3645.4,3645.0,0.2221]
[1736172510920,0.04071274,3645.2,3645.1,0.03493145]
[1736172511359,4.70125102,3646.1,3645.1,0.03493145]
[1736172511565,5.50163538,3646.1,3645.1,0.03493145]
[1736172511734,0.04125141,3646.0,3645.1,0.03493145]
[1736172511924,0.04125141,3646.0,3645.1,2.77826145]
[1736172512123,0.04125141,3646.0,3645.1,0.03493145]
[1736172512363,0.04125141,3646.0,3645.2,2.74333]
[1736172512662,0.04125141,3646.0,3645.3,0.02742914]
[1736172512838,0.48128699,3646.0,3645.3,0.02742914]
[1736172513469,0.04125141,3646.0,3645.1,2.77832946]
[1736172513622,0.04125141,3646.0,3645.3,0.0075]
[1736172513822,0.04125141,3646.0,3645.5,0.0075]
[1736172514235,2.74265,3646.2,3645.5,0.0075]
[1736172514460,0.04130524,3645.9,3645.5,0.0075]
[1736172514629,2.74265,3646.2,3645.5,0.0075]
[1736172514829,0.04126801,3645.8,3645.4,0.2221]
[1736172515035,0.7902,3646.1,3645.4,0.2221]
[1736172515252,0.04125705,3645.7,3645.5,0.02742799]
[1736172515430,0.7902,3646.1,3645.5,0.02742799]
[1736172515951,0.04143858,3646.0,3645.5,0.02742799]
[1736172518679,2.74259,3646.2,3645.5,0.02742799]
[1736172519165,0.0415588,3646.1,3645.5,0.02742799]
[1736172520249,2.74273,3646.0,3645.4,0.2221]
[1736172520448,0.04144937,3645.9,3645.4,0.2221]
[1736172521256,0.7922,3645.8,3644.8,0.2221]
[1736172521563,0.04123925,3645.7,3644.9,0.0075]
[1736172521766,0.04123925,3645.7,3645.1,0.0075]
[1736172522076,2.74284,3645.9,3645.1,0.0075]
[1736172522445,0.04174896,3645.8,3645.1,0.0075]
[1736172522750,0.04174896,3645.8,3645.1,0.03492952]
[1736172523896,0.04174896,3645.8,3645.5,0.015]
[1736172524102,2.7426,3646.2,3645.4,0.2221]
[1736172524244,0.43032051,3646.1,3645.5,0.02742545]
[1736172524444,0.04182141,3646.1,3645.6,0.0075]
[1736172524882,3.88482102,3646.4,3645.6,0.0075]
[1736172525067,0.04177061,3646.0,3645.6,0.0075]
[1736172525263,2.74243,3646.4,3645.5,0.03492654]
[1736172525803,0.04189585,3646.3,3645.5,0.03492654]
[1736172525955,0.04189585,3646.3,3645.5,2.77800654]
[1736172526487,3.88474102,3646.5,3645.9,0.0075]
[1736172526488,1.14239102,3646.5,3645.9,0.0075]
[1736172526684,0.86530348,3646.5,3645.9,0.0075]
[1736172526978,0.04191949,3646.4,3645.9,0.0075]
[1736172527580,0.04191949,3646.4,3645.9,0.03492406]
[1736172527881,0.04191949,3646.4,3646.1,0.0075]
[1736172528187,1.14239102,3646.9,3646.3,0.0075]
[1736172529384,0.04273202,3646.8,3646.0,0.2221]
[1736172529584,0.04273202,3646.8,3646.1,0.0075]
[1736172530774,0.04273202,3646.8,3646.1,0.03492251]
[1736172532093,0.04281606,3646.7,3646.1,0.03492251]
[1736172532294,2.7419,3647.1,3646.2,0.5575]
[1736172532537,1.14239102,3647.3,3646.5,2.74984]
[1736172532701,0.04253984,3647.0,3646.6,0.02741935]
[1736172532994,1.14239102,3647.3,3646.6,0.02741935]
[1736172533867,2.74166,3647.5,3646.6,0.02741935]
[1736172534207,0.4691351,3647.4,3646.6,0.02741935]
[1736172534376,2.74183,3647.2,3646.6,0.02741935]
[1736172534575,3.2108451,3647.4,3646.6,0.02741935]
[1736172535679,3.2108451,3647.4,3646.7,0.0075]
[1736172535897,3.54884,3647.6,3646.7,0.0075]
[1736172536284,1.14239102,3647.7,3646.9,0.0075]
[1736172536484,0.04338366,3647.6,3647.2,0.0075]
[1736172536717,0.04338366,3647.6,3647.2,2.77670455]
[1736172537027,0.04338366,3647.6,3647.4,0.0075]
[1736172537195,1.14239102,3647.8,3647.4,0.0075]
[1736172537196,1.14239102,3647.8,3647.4,0.03491296]
[1736172537397,0.0437777,3647.5,3647.4,0.03491296]
[1736172537634,1.14239102,3647.8,3647.4,0.03491296]
[1736172538109,0.04385206,3647.7,3647.4,0.03491296]
[1736172538425,3.56512,3648.3,3647.4,0.0075]
[1736172538593,0.04384216,3647.6,3647.4,0.03491237]
[1736172538791,0.8241,3648.3,3647.4,0.03491237]
[1736172539099,2.78515522,3648.2,3647.4,0.0075]
[1736172540225,2.78515522,3648.2,3647.4,0.03491238]
[1736172540533,2.78515522,3648.2,3647.5,0.2221]
[1736172540705,2.78515522,3648.2,3647.6,0.02741238]
[1736172540898,2.74116,3648.1,3647.5,0.2221]
[1736172541225,0.04413997,3648.0,3647.5,0.2221]
[1736172542498,3.15587359,3648.2,3647.5,0.2221]
[1736172542821,0.04383751,3648.1,3647.5,0.2221]
[1736172543037,0.04383751,3648.1,3646.6,0.2221]
[1736172543227,3.4568016,3647.7,3646.6,0.2221]
[1736172543399,2.74169,3647.4,3646.6,0.2221]
[1736172543604,2.74198,3647.0,3646.1,0.2221]
[1736172543811,2.74198,3647.0,3646.2,0.565]
[1736172544022,0.04362862,3646.9,3646.2,0.0075]
[1736172544531,0.04362862,3646.9,3646.2,5.77743971]
[1736172544841,0.34568016,3647.6,3646.7,0.0075]
[1736172544842,2.74153,3647.6,3646.7,0.0075]
[1736172545025,0.04345472,3646.8,3646.7,0.03491654]
[1736172545209,2.74161,3647.5,3646.7,0.03491654]
[1736172545745,0.04349574,3647.4,3646.7,0.03491654]
[1736172546940,0.04349574,3647.4,3646.5,0.2221]
[1736172547127,2.74185,3647.2,3646.5,0.2221]
[1736172547499,0.04349574,3647.4,3646.5,0.2221]
[1736172547703,1.29464723,3647.8,3646.5,0.2221]
[1736172547704,2.74159,3647.6,3646.5,0.2221]
[1736172547903,2.74175,3647.3,3646.5,0.2221]
[1736172548313,0.40362372,3647.5,3646.5,0.2221]
[1736172548314,2.74192,3647.1,3646.5,0.2221]
[1736172548524,0.04310562,3647.0,3646.5,0.2221]
[1736172548732,2.74237,3646.5,3646.1,0.2221]
[1736172548914,0.04291365,3646.4,3646.1,0.2221]
[1736172549213,0.04291365,3646.4,3645.5,2.75059]
[1736172549414,2.7425,3646.3,3645.6,0.2221]
[1736172549714,0.04302322,3646.2,3645.6,0.2221]
[1736172549917,2.78562322,3646.2,3645.6,0.2221]
[1736172552233,0.04302322,3646.2,3645.6,0.2221]
[1736172552427,2.74249,3646.4,3645.6,0.2221]
[1736172552632,0.04211394,3646.1,3645.6,0.2221]
[1736172552864,2.74252,3646.3,3645.6,0.2221]
[1736172553059,0.04207672,3646.0,3645.6,0.2221]
[1736172553356,0.0420395,3645.9,3645.7,0.02742647]
[1736172553787,2.74238,3646.5,3645.5,0.5575]
[1736172553921,0.04202958,3645.8,3645.5,0.5575]
[1736172554323,2.74243,3646.4,3645.5,0.5575]
[1736172554558,0.04222989,3646.3,3645.5,0.5575]
[1736172555133,2.74281,3645.9,3645.4,0.08577586]
[1736172555333,0.0420438,3645.8,3645.3,0.2221]
[1736172555923,0.39678918,3645.8,3645.3,0.2221]
[1736172556129,3.13968918,3645.8,3645.0,0.08577586]
[1736172556323,2.7849438,3645.8,3645.0,0.1132076]
[1736172556630,2.7849438,3645.8,3645.0,0.02743174]
[1736172557024,2.7849438,3645.8,3644.9,0.2296]
[1736172557227,2.7849438,3645.8,3645.0,0.02743175]
[1736172557940,0.0420438,3645.8,3645.0,0.02743175]
[1736172558145,2.74303,3645.6,3644.9,0.2221]
[1736172558347,0.7626,3646.0,3645.0,0.02743273]
[1736172558549,1.28136273,3646.0,3644.9,0.2221]
[1736172558757,1.28136273,3646.0,3644.6,0.30787586]
[1736172558758,0.7884,3645.3,3644.6,0.30787586]
[1736172558971,2.74341,3645.1,3644.6,0.08577586]
[1736172559282,0.0413296,3645.2,3644.6,0.08577586]
[1736172559455,0.04125512,3645.0,3644.6,0.08577586]
[1736172559656,0.04129237,3645.1,3644.5,0.0075]
[1736172560056,3.53167,3645.3,3644.5,0.0075]
[1736172560257,0.04125512,3645.0,3644.5,0.0075]
[1736172560448,3.53167,3645.3,3644.5,0.03493506]
[1736172560656,0.04121788,3644.9,3644.5,0.03493506]
[1736172560862,3.53167,3645.3,3644.5,0.03493506]
[1736172561054,0.04118063,3644.8,3644.5,0.03493506]
[1736172561451,3.53167,3645.3,3644.5,0.03493506]
[1736172561652,0.04114339,3644.7,3644.5,0.0075]
[1736172561874,0.7884,3645.3,3644.5,0.0075]
[1736172562178,2.74357,3644.9,3644.3,0.2221]
[1736172562640,0.04086226,3644.8,3644.3,0.2221]
[1736172562843,2.78456226,3644.8,3644.3,0.2221]
[1736172564368,2.78456226,3644.8,3643.9,0.7796]
[1736172564681,0.04086226,3644.8,3644.0,0.02743869]
[1736172564853,0.04086226,3644.8,3644.5,0.2221]
[1736172565048,0.8085,3645.6,3644.5,0.24953523]
[1736172565246,0.04043046,3644.7,3644.5,0.24953523]
[1736172565440,1.46201583,3645.6,3644.5,0.24953523]
[1736172565644,0.04047411,3644.6,3644.5,3.55839523]
[1736172565843,1.46201583,3645.6,3644.5,3.55839523]
[1736172565844,0.8085,3645.6,3644.5,0.2221]
[1736172566044,0.04047411,3644.6,3644.5,0.2221]
[1736172566293,2.74329,3645.3,3644.5,0.2221]
[1736172566446,3.098469,3645.3,3644.5,0.24953523]
[1736172566785,0.04075248,3645.2,3644.6,0.565]
[1736172567009,0.8085,3645.6,3644.8,0.0075]
[1736172567186,0.04071524,3645.1,3645.0,0.5575]
[1736172567364,0.04071524,3645.1,3645.0,3.30848]
[1736172567717,1.14239102,3646.0,3645.0,3.30848]
[1736172568005,1.14239102,3646.0,3645.2,0.0075]
[1736172568307,0.03773739,3645.9,3645.2,0.0075]
[1736172568514,0.03773739,3645.9,3645.2,0.02742967]
[1736172568853,2.74291,3645.8,3645.0,0.02742967]
[1736172569052,2.78379944,3645.8,3645.0,0.02742967]
[1736172569369,2.74317,3645.5,3644.6,0.2221]
[1736172569685,2.78392051,3645.4,3644.7,0.0075]
[1736172570280,0.04074051,3645.4,3644.6,0.2221]
[1736172570450,0.04074051,3645.4,3644.3,0.2221]
[1736172570451,2.74356,3644.9,3644.3,0.2221]
[1736172570650,2.74363,3644.8,3644.3,0.2221]
[1736172570986,2.78428817,3644.8,3644.3,0.2221]
[1736172572278,0.04065817,3644.8,3644.3,0.2221]
[1736172572584,0.7574,3645.1,3644.3,0.2221]
[1736172572763,0.04057601,3644.7,3644.3,0.2221]
[1736172573163,1.42539587,3645.1,3644.3,0.2221]
[1736172573465,2.74356,3644.9,3644.3,0.2221]
[1736172574025,0.04061326,3644.8,3644.3,0.2221]
[1736172574704,0.04061326,3644.8,3644.4,35.0]
[1736172577255,2.7438,3644.6,3644.4,35.0]
[1736172577527,0.04027967,3644.7,3644.4,35.0]
[1736172577711,0.04020516,3644.5,3644.4,35.0]
[1736172579587,2.74374,3644.7,3644.4,35.0]
[1736172580328,2.74386,3644.5,3643.6,3.0]
[1736172580504,2.74386,3644.5,3643.5,0.2221]
[1736172580505,2.7442,3644.1,3643.5,0.2221]
[1736172580836,0.03959853,3644.0,3643.7,35.0]
[1736172580986,2.7442,3644.1,3643.7,35.0]
[1736172581788,0.124,3644.6,3643.8,0.0075]
[1736172582027,0.124,3644.6,3643.8,0.03494324]
[1736172582028,2.74386,3644.5,3643.8,0.03494324]
[1736172582354,2.74386,3644.5,3643.7,35.0]
[1736172582355,2.74403,3644.3,3643.7,35.0]
[1736172582657,2.7831555,3644.2,3643.7,35.0]
[1736172582932,0.0390555,3644.2,3643.7,35.0]
[1736172583140,2.74418,3644.1,3643.7,35.0]
[1736172583944,2.7443,3644.0,3643.7,35.0]
[1736172584235,2.74438,3643.8,3643.7,35.0]
[1736172584602,2.78315644,3643.8,3643.7,35.0]
[1736172585339,2.78315644,3643.8,3643.2,0.1211567]
[1736172585707,2.78315644,3643.8,3643.3,35.0]
[1736172586344,2.74455,3643.6,3643.3,35.0]
[1736172586741,0.03866463,3643.5,3643.3,35.0]
[1736172589938,0.03866463,3643.5,3643.2,0.1211567]
[1736172590142,2.74438,3643.8,3643.2,0.1211567]
[1736172590434,3.15751619,3643.8,3643.2,0.1211567]
[1736172590639,0.41313619,3643.8,3643.2,0.1211567]
[1736172590833,2.74465,3643.5,3643.3,35.0]
[1736172591821,0.03849449,3643.4,3643.3,35.0]
[1736172592229,2.74434,3643.9,3643.3,35.0]
[1736172592439,0.03845706,3643.4,3643.3,35.0]
[1736172592614,2.74434,3643.9,3643.3,35.0]
[1736172592815,0.03848453,3643.4,3643.3,35.0]
[1736172593229,2.74434,3643.9,3643.3,35.0]
[1736172593427,0.03848453,3643.4,3643.3,35.0]
[1736172593643,2.74434,3643.9,3643.3,35.0]
[1736172593851,0.03847094,3643.4,3643.3,35.0]
[1736172594047,2.74434,3643.9,3643.3,35.0]
[1736172594319,0.03847094,3643.4,3643.3,35.0]
[1736172594549,2.74439,3643.8,3643.3,35.0]
[1736172594849,0.03858276,3643.7,3643.3,35.0]
[1736172595147,2.74439,3643.8,3643.3,35.0]
[1736172595544,0.03858276,3643.7,3643.3,35.0]
[1736172595921,2.74439,3643.8,3643.3,35.0]
[1736172596335,0.03858276,3643.7,3643.3,35.0]
[1736172596555,2.78310276,3643.7,3643.3,35.0]
[1736172596856,0.03854549,3643.6,3643.3,35.0]
[1736172597157,2.74452,3643.7,3643.3,35.0]
[1736172597377,2.74454,3643.6,3643.3,35.0]
[1736172600465,2.74468,3643.4,3643.3,35.0]
[1736172600969,2.78234001,3643.4,3643.3,35.0]
[1736172603143,2.78234001,3643.4,3643.2,0.1211567]
[1736172603144,3.54156,3643.3,3643.2,0.1211567]
[1736172603558,3.5790918,3643.3,3643.2,0.1211567]
[1736172604545,3.7030918,3643.3,3643.2,0.1211567]
[1736172604735,4.63960454,3643.3,3643.2,0.1211567]
[1736172605137,7.66640454,3643.3,3643.2,0.1211567]
[1736172605345,7.66640454,3643.3,3643.2,6.7e-06]
[1736172606472,10.13821525,3643.3,3643.2,6.7e-06]
[1736172606677,6.51283,3643.2,3643.1,6.7e-06]
[1736172606976,10.77580693,3643.2,3643.1,6.7e-06]
[1736172607296,16.30234483,3643.2,3643.1,6.7e-06]
[1736172608405,13.65944323,3643.2,3643.1,6.7e-06]
[1736172608607,10.78344323,3643.2,3643.1,6.7e-06]
[1736172608822,18.80506589,3643.2,3643.1,6.7e-06]
[1736172610194,13.42634483,3643.2,3643.1,6.7e-06]
[1736172612951,16.42634483,3643.2,3643.1,6.7e-06]
[1736172618024,16.30234483,3643.2,3643.1,6.7e-06]
[1736172618230,16.42534483,3643.2,3643.1,6.7e-06]
[1736172620190,17.74912438,3643.2,3643.1,6.7e-06]
[1736172621693,18.89307914,3643.2,3643.1,6.7e-06]
[1736172622983,19.51487402,3643.2,3643.1,6.7e-06]
[1736172625928,21.80336923,3643.2,3643.1,6.7e-06]
[1736172626943,3.53239,3641.8,3639.5,0.178577]
[1736172627148,2.6429016,3640.7,3640.3,1.14601962]
[1736172627356,2.74695,3640.4,3640.3,1.14601962]
[1736172627688,2.74695,3640.4,3640.2,1.71902944]
[1736172627689,0.03537401,3640.4,3640.2,1.71902944]
[1736172627891,2.74703,3640.3,3640.2,1.71902944]
[1736172628250,2.78181271,3640.3,3640.2,1.71902944]
[1736172629654,2.78181271,3640.3,3640.1,0.2221]
[1736172629811,0.03478271,3640.3,3640.1,0.2221]
[1736172630012,1.14411807,3640.8,3640.2,0.5575]
[1736172630212,1.14411807,3640.8,3640.5,0.565]
[1736172630426,0.03319252,3640.7,3640.6,0.8070656]
[1736172630637,1.14411807,3641.0,3640.6,0.8070656]
[1736172630945,0.03354641,3640.9,3640.6,0.8070656]
[1736172631408,0.03354641,3640.9,3640.7,35.0]
[1736172631592,0.03354641,3640.9,3640.8,0.2221]
[1736172631788,8.2557016,3641.8,3640.8,0.2221]
[1736172631987,2.80851965,3641.6,3640.8,0.2221]
[1736172633099,2.80851965,3641.6,3640.9,0.02746293]
[1736172633301,0.06244965,3641.6,3640.9,0.02746293]
[1736172633500,0.06244965,3641.6,3641.0,0.2221]
[1736172633773,5.4898,3641.8,3641.0,0.2221]
[1736172634105,2.74598,3641.7,3641.0,0.2221]